bitfinex/quotes_BTCUSD_20250226
["timestamp","ask_amount","ask_price","bid_price","bid_amount"]
[1740574138831,5.62695654,88370.0,88369.0,8.64777548]
[1740574139430,5.64250808,88370.0,88369.0,8.64462732]
[1740574140011,5.77165844,88370.0,88369.0,8.64462732]
[1740574140170,5.55595748,88370.0,88369.0,8.64462732]
[1740574140376,5.72988318,88370.0,88369.0,8.64462732]
[1740574140601,5.83172718,88370.0,88369.0,8.64462732]
[1740574140805,5.48963518,88370.0,88369.0,8.64462732]
[1740574141259,5.55280537,88370.0,88369.0,8.64462732]
[1740574141404,5.66666233,88370.0,88369.0,8.64462732]
[1740574141603,5.53505346,88370.0,88369.0,8.64462732]
[1740574141806,5.5666364,88370.0,88369.0,8.64462732]
[1740574142225,5.4647924,88370.0,88369.0,8.64462732]
[1740574142428,5.50346621,88370.0,88369.0,8.64462732]
[1740574142717,5.53830373,88370.0,88369.0,8.64462732]
[1740574143466,5.40162221,88370.0,88369.0,8.64462732]
[1740574143782,3.31029073,88370.0,88369.0,8.64462732]
[1740574143912,1.06855573,88370.0,88369.0,8.64462732]
[1740574144314,1.13169778,88370.0,88369.0,8.64462732]
[1740574144513,1.25256188,88370.0,88369.0,8.64462732]
[1740574144776,1.25991681,88370.0,88369.0,8.64462732]
[1740574144975,1.35673168,88370.0,88369.0,8.64462732]
[1740574145110,1.36713168,88370.0,88369.0,8.64462732]
[1740574145520,1.30398963,88370.0,88369.0,8.64462732]
[1740574146772,1.29358963,88370.0,88369.0,8.64462732]
[1740574147174,1.30398963,88370.0,88369.0,8.64462732]
[1740574147806,1.49358963,88370.0,88369.0,8.64462732]
[1740574148013,1.50769272,88370.0,88369.0,8.64462732]
[1740574148620,1.50854092,88370.0,88369.0,8.64462732]
[1740574148809,1.52547201,88370.0,88369.0,8.64462732]
[1740574149051,1.51507201,88370.0,88369.0,8.64462732]
[1740574149181,1.39468396,88370.0,88369.0,8.64462732]
[1740574150345,1.41572494,88370.0,88369.0,8.64462732]
[1740574150526,1.41572494,88370.0,88369.0,8.57363658]
[1740574150734,1.41230992,88370.0,88369.0,8.57363658]
[1740574150887,1.52616688,88370.0,88369.0,8.57363658]
[1740574151289,1.41230992,88370.0,88369.0,8.57363658]
[1740574151494,1.39455499,88370.0,88369.0,8.57363658]
[1740574152106,1.37692903,88370.0,88369.0,8.57363658]
[1740574154538,0.97898603,88370.0,88369.0,8.57363658]
[1740574154741,1.01436741,88370.0,88369.0,8.57363658]
[1740574154948,6.06436741,88370.0,88369.0,8.57363658]
[1740574155156,6.17822437,88370.0,88369.0,8.57363658]
[1740574155316,6.15382437,88370.0,88369.0,8.57263658]
[1740574155523,6.16418437,88370.0,88369.0,8.57263658]
[1740574155721,6.23432642,88370.0,88369.0,8.57263658]
[1740574156109,6.25432642,88370.0,88369.0,8.57263658]
[1740574156314,6.27958124,88370.0,88369.0,8.57263658]
[1740574156519,6.26195528,88370.0,88369.0,8.57263658]
[1740574156852,6.29017822,88370.0,88369.0,8.57263658]
[1740574157067,6.30053822,88370.0,88369.0,8.57263658]
[1740574157510,6.29017822,88370.0,88369.0,8.57263658]
[1740574157684,6.28151812,88370.0,88369.0,8.57263658]
[1740574157901,6.27115812,88370.0,88369.0,8.57263658]
[1740574158048,6.28151812,88370.0,88369.0,8.57263658]
[1740574158700,6.29927811,88370.0,88369.0,8.57263658]
[1740574158900,6.29927811,88370.0,88369.0,8.56709173]
[1740574160421,6.18542115,88370.0,88369.0,8.56709173]
[1740574160848,6.17506115,88370.0,88369.0,8.56709173]
[1740574161061,6.18542115,88370.0,88369.0,8.56709173]
[1740574162403,6.18542115,88370.0,88369.0,8.50319929]
[1740574162606,6.17506115,88370.0,88369.0,8.50319929]
[1740574162965,6.29931811,88370.0,88369.0,8.50319929]
[1740574164221,6.28891811,88370.0,88369.0,8.50319929]
[1740574164465,6.29927811,88370.0,88369.0,8.50319929]
[1740574164873,6.30799655,88370.0,88369.0,8.50319929]
[1740574165348,1.23891811,88370.0,88369.0,8.50319929]
[1740574165523,1.11542115,88370.0,88369.0,8.50282209]
[1740574165724,6.18542115,88370.0,88369.0,8.50282209]
[1740574166969,6.17506115,88370.0,88369.0,8.50282209]
[1740574167162,6.16826415,88370.0,88369.0,8.50282209]
[1740574167399,5.98989611,88370.0,88369.0,8.50282209]
[1740574167670,5.78523111,88370.0,88369.0,8.50282209]
[1740574167873,5.48817711,88370.0,88369.0,8.50282209]
[1740574168316,5.47781711,88370.0,88369.0,8.49814175]
[1740574168723,5.46006169,88370.0,88369.0,8.49814175]
[1740574169081,5.49180651,88370.0,88369.0,8.42714727]
[1740574169281,5.48116651,88370.0,88369.0,8.42714727]
[1740574169487,5.49180651,88370.0,88369.0,8.42714727]
[1740574169816,5.37424646,88370.0,88369.0,8.42714727]
[1740574170042,5.38479859,88370.0,88369.0,8.39165002]
[1740574170376,5.38483859,88370.0,88369.0,8.39165002]
[1740574170578,5.36373377,88370.0,88369.0,8.39165002]
[1740574170783,5.35305377,88370.0,88369.0,8.39165002]
[1740574170989,5.36373377,88370.0,88369.0,8.39165002]
[1740574171413,5.36373377,88370.0,88369.0,8.38863416]
[1740574171771,5.35080993,88370.0,88369.0,8.38863416]
[1740574171976,5.06337709,88370.0,88369.0,8.3545561]
[1740574172182,5.05282496,88370.0,88369.0,8.3545561]
[1740574172602,5.11562227,88370.0,88369.0,8.3545561]
[1740574172775,5.0337378,88370.0,88369.0,8.3545561]
[1740574172984,5.01598164,88370.0,88369.0,8.3545561]
[1740574173341,5.0443888,88370.0,88369.0,8.3545561]
[1740574173559,5.0550688,88370.0,88369.0,8.3545561]
[1740574173768,5.02530164,88370.0,88369.0,8.3545561]
[1740574173992,5.1391586,88370.0,88369.0,8.3545561]
[1740574174409,5.15827121,88370.0,88369.0,8.3545561]
[1740574175589,4.85827121,88370.0,88369.0,8.3545561]
[1740574176019,0.81203525,88370.0,88369.0,8.3545561]
[1740574176194,5.87271525,88370.0,88369.0,8.3545561]
[1740574176823,5.85360264,88370.0,88369.0,8.3545561]
[1740574177128,5.86428264,88370.0,88369.0,8.3545561]
[1740574177301,5.8820388,88370.0,88369.0,8.3545561]
[1740574177503,5.99589576,88370.0,88369.0,8.3545561]
[1740574178739,6.1820388,88370.0,88369.0,8.3545561]
[1740574179330,6.15045586,88370.0,88369.0,8.3545561]
[1740574179423,6.08731381,88370.0,88369.0,8.3545561]
[1740574180049,6.15039844,88370.0,88369.0,8.3545561]
[1740574180246,6.18205322,88370.0,88369.0,8.3545561]
[1740574180456,6.29591018,88370.0,88369.0,8.3545561]
[1740574181432,6.27815402,88370.0,88369.0,8.3545561]
[1740574182245,6.26927256,88370.0,88369.0,8.3545561]
[1740574182464,6.31760001,88370.0,88369.0,8.3545561]
[1740574182643,6.36229101,88370.0,88369.0,8.3545561]
[1740574183322,6.31060001,88370.0,88369.0,8.3545561]
[1740574183523,6.31432001,88370.0,88369.0,8.3545561]
[1740574183800,5.84313401,88370.0,88369.0,8.3545561]
[1740574184180,5.28655101,88370.0,88369.0,8.3545561]
[1740574184653,5.29358754,88370.0,88369.0,8.3545561]
[1740574184823,5.31358754,88370.0,88369.0,7.6644111]
[1740574185441,5.3452559,88370.0,88369.0,7.59340614]
[1740574185585,5.31014403,88370.0,88369.0,7.55790629]
[1740574185792,5.31714403,88370.0,88369.0,7.55790629]
[1740574186129,5.32414403,88370.0,88369.0,7.55790629]
[1740574186479,5.31014403,88370.0,88369.0,6.19055367]
[1740574186650,5.32414403,88370.0,88369.0,6.19055367]
[1740574187072,5.22880458,88370.0,88369.0,6.19055367]
[1740574187435,5.22180458,88370.0,88369.0,6.19055367]
[1740574187634,5.17959331,88370.0,88369.0,6.19055367]
[1740574188045,5.18659331,88370.0,88369.0,6.19055367]
[1740574188222,5.14936224,88370.0,88369.0,6.19055367]
[1740574188424,5.16008224,88370.0,88369.0,6.19055367]
[1740574188620,5.16708224,88370.0,88369.0,6.19055367]
[1740574189033,5.16008224,88370.0,88369.0,6.19055367]
[1740574189690,5.15308224,88370.0,88369.0,6.19055367]
[1740574190028,5.14936224,88370.0,88369.0,6.19055367]
[1740574190256,5.16008224,88370.0,88369.0,6.19055367]
[1740574190467,5.15636224,88370.0,88369.0,6.19055367]
[1740574190688,5.16708224,88370.0,88369.0,6.19055367]
[1740574190834,5.1499302,88370.0,88369.0,6.19055367]
[1740574191041,5.17879238,88370.0,88369.0,6.19055367]
[1740574191396,5.20488189,88370.0,88369.0,6.19055367]
[1740574191565,5.10303789,88370.0,88369.0,6.19055367]
[1740574191796,5.06756136,88370.0,88369.0,6.19055367]
[1740574192182,5.07456136,88370.0,88369.0,6.19055367]
[1740574192597,5.06056136,88370.0,88369.0,6.18186573]
[1740574192794,1.10625215,88370.0,88369.0,6.18186573]
[1740574193056,6.14925215,88370.0,88369.0,6.18186573]
[1740574193249,6.14225215,88370.0,88369.0,5.9259743]
[1740574193453,6.14925215,88370.0,88369.0,5.9259743]
[1740574194065,1.09225215,88370.0,88369.0,5.9259743]
[1740574194409,2.6757449,88370.0,88369.0,5.42249371]
[1740574194614,2.7096929,88370.0,88369.0,4.92237322]
[1740574194815,2.71691143,88370.0,88369.0,3.52501329]
[1740574194997,2.72391143,88370.0,88369.0,2.88467161]
[1740574195193,2.72779143,88370.0,88369.0,2.79857034]
[1740574195402,2.72779143,88370.0,88369.0,1.3388228]
[1740574195641,2.76638877,88370.0,88369.0,1.3388228]
[1740574195844,2.75238877,88370.0,88369.0,1.18783233]
[1740574196222,2.75238877,88370.0,88369.0,1.08318473]
[1740574196416,2.77766873,88370.0,88369.0,1.08318473]
[1740574196623,2.77378873,88370.0,88369.0,1.08318473]
[1740574196821,2.66138873,88370.0,88369.0,0.98322003]
[1740574197022,2.67226873,88370.0,88369.0,0.50031203]
[1740574197224,0.78849185,88361.0,88360.0,0.49445674]
[1740574197603,2.43282425,88361.0,88360.0,0.48446028]
[1740574197775,2.45659917,88361.0,88360.0,0.48446028]
[1740574198012,2.474361,88361.0,88360.0,0.48446028]
[1740574198422,1.94072768,88361.0,88360.0,0.48446028]
[1740574198623,5.12023268,88361.0,88360.0,0.48446028]
[1740574198824,3.67305268,88361.0,88360.0,0.53266028]
[1740574199027,3.65932762,88361.0,88360.0,0.53266028]
[1740574199358,3.69129472,88361.0,88360.0,0.48446028]
[1740574199571,4.03983557,88361.0,88360.0,0.48446028]
[1740574199689,4.04573049,88361.0,88360.0,0.48446028]
[1740574199891,0.86622549,88361.0,88360.0,0.48446028]
[1740574200488,2.40947878,88361.0,88360.0,0.46046028]
[1740574200767,2.27798084,88361.0,88360.0,0.46046028]
[1740574201356,2.27098084,88361.0,88360.0,0.46046028]
[1740574201569,2.22614984,88361.0,88360.0,0.46046028]
[1740574201743,2.24402984,88361.0,88360.0,0.46046028]
[1740574202095,5.39499399,88361.0,88360.0,0.46046028]
[1740574202293,5.40199399,88361.0,88360.0,0.46046028]
[1740574202444,2.22402984,88361.0,88360.0,0.46046028]
[1740574202649,2.23702984,88361.0,88360.0,0.46046028]
[1740574203623,2.23802503,88361.0,88360.0,0.46046028]
[1740574203740,2.25578631,88361.0,88360.0,0.46046028]
[1740574204592,2.26278631,88361.0,88360.0,0.46046028]
[1740574204778,2.25578631,88361.0,88360.0,0.46046028]
[1740574205294,2.26278631,88361.0,88360.0,0.46046028]
[1740574205614,2.24878631,88361.0,88360.0,0.46046028]
[1740574205825,2.26278631,88361.0,88360.0,0.46046028]
[1740574207247,2.26278631,88361.0,88360.0,0.46088428]
[1740574207442,2.26363431,88361.0,88360.0,0.46088428]
[1740574208083,2.26363431,88361.0,88360.0,0.39696622]
[1740574208282,2.40595431,88361.0,88360.0,0.39696622]
[1740574209297,2.41766912,88361.0,88360.0,0.39696622]
[1740574211107,2.41766912,88361.0,88360.0,0.38305935]
[1740574211689,2.39990784,88361.0,88360.0,0.38305935]
[1740574212694,2.10972904,88361.0,88360.0,0.38305935]
[1740574213151,1.95652904,88361.0,88360.0,0.38305935]
[1740574213355,1.96732904,88361.0,88360.0,0.38305935]
[1740574215872,2.16732904,88361.0,88360.0,0.3746525]
[1740574216069,2.1850907,88361.0,88360.0,0.3746525]
[1740574216787,2.1850907,88361.0,88360.0,0.26469134]
[1740574217516,2.1850907,88361.0,88360.0,0.25425387]
[1740574217719,2.3046907,88361.0,88360.0,0.24031893]
[1740574217882,2.3046907,88361.0,88360.0,0.2075531]
[1740574218089,0.32,88331.0,88326.0,0.0463]
[1740574218309,0.03454085,88328.0,88327.0,93.46177161]
[1740574218508,3.05942058,88328.0,88327.0,93.24243861]
[1740574218769,3.11095561,88328.0,88327.0,93.24243861]
[1740574219035,3.23498028,88328.0,88327.0,93.24243861]
[1740574219237,3.25559375,88328.0,88327.0,93.24243861]
[1740574219573,3.25559375,88328.0,88327.0,93.24285663]
[1740574219765,3.26499331,88328.0,88327.0,93.24285663]
[1740574220308,3.3650443,88328.0,88327.0,93.24285663]
[1740574220543,3.3720443,88328.0,88327.0,93.24285663]
[1740574220747,3.43054644,88328.0,88327.0,93.24285663]
[1740574221202,4.84684644,88328.0,88327.0,93.24285663]
[1740574221417,2.10112454,88328.0,88327.0,93.24285663]
[1740574221628,2.11204454,88328.0,88327.0,93.24285663]
[1740574222080,2.01112193,88328.0,88327.0,93.24285663]
[1740574222242,2.03112193,88328.0,88327.0,93.24285663]
[1740574222442,2.04204193,88328.0,88327.0,93.24285663]
[1740574222804,2.01053979,88328.0,88327.0,93.24285663]
[1740574223223,1.98533763,88328.0,88327.0,93.24285663]
[1740574223430,1.97441763,88328.0,88327.0,93.24285663]
[1740574223630,1.98529763,88328.0,88327.0,93.24285663]
[1740574223784,1.99229763,88328.0,88327.0,93.24285663]
[1740574223988,1.98529763,88328.0,88327.0,93.24285663]
[1740574224184,1.97441763,88328.0,88327.0,93.24285663]
[1740574224389,2.0100646,88328.0,88327.0,93.24285663]
[1740574224719,1.9851846,88328.0,88327.0,93.24285663]
[1740574224869,1.95764375,88328.0,88327.0,93.24285663]
[1740574225067,3.27031088,88328.0,88327.0,93.24285663]
[1740574225292,0.24041288,88328.0,88327.0,93.28905663]
[1740574225503,2.97450828,88328.0,88327.0,93.28905663]
[1740574225676,3.06971305,88328.0,88327.0,93.28905663]
[1740574225917,3.0842539,88328.0,88327.0,93.28905663]
[1740574226082,3.04692814,88328.0,88327.0,93.28905663]
[1740574226283,3.05361074,88328.0,88327.0,93.28905663]
[1740574226494,3.08427728,88328.0,88327.0,93.28905663]
[1740574226701,3.05780814,88328.0,88327.0,93.28905663]
[1740574227133,3.06480814,88328.0,88327.0,93.28905663]
[1740574227335,0.2648633,88328.0,88327.0,93.36795663]
[1740574227515,3.03014344,88328.0,88327.0,93.36795663]
[1740574227721,3.00229515,88328.0,88327.0,93.36795663]
[1740574227941,3.02176429,88328.0,88327.0,93.36795663]
[1740574228103,3.03296169,88328.0,88327.0,93.36795663]
[1740574228312,3.04756254,88328.0,88327.0,93.36795663]
[1740574228555,3.03356254,88328.0,88327.0,93.36795663]
[1740574228930,3.04056254,88328.0,88327.0,93.36795663]
[1740574229330,3.03356254,88328.0,88327.0,93.36795663]
[1740574229537,3.03356254,88328.0,88327.0,93.36185663]
[1740574229752,3.03356254,88328.0,88327.0,93.29791943]
[1740574229753,3.04052254,88328.0,88327.0,93.29791943]
[1740574230169,3.09923956,88328.0,88327.0,93.29791943]
[1740574230600,3.10623956,88328.0,88327.0,93.29791943]
[1740574230779,3.09923956,88328.0,88327.0,93.29791943]
[1740574230982,0.38334156,88328.0,88327.0,93.17281943]
[1740574231189,0.40920652,88328.0,88327.0,93.16919976]
[1740574231576,0.40220652,88328.0,88327.0,93.16919976]
[1740574231808,0.35993741,88328.0,88327.0,93.16919976]
[1740574232253,0.30122039,88328.0,88327.0,93.16962376]
[1740574232403,3.01011839,88328.0,88327.0,93.16962376]
[1740574232602,2.99927839,88328.0,88327.0,93.16962376]
[1740574232764,3.01711839,88328.0,88327.0,93.16962376]
[1740574233173,3.06883541,88328.0,88327.0,93.16962376]
[1740574233381,3.10033755,88328.0,88327.0,93.16962376]
[1740574233624,3.10733755,88328.0,88327.0,93.16962376]
[1740574233872,3.11433755,88328.0,88327.0,93.16962376]
[1740574234079,3.08672408,88328.0,88327.0,93.16962376]
[1740574234482,0.35998608,88328.0,88327.0,93.16962376]
[1740574234721,1.23992715,88328.0,88327.0,93.16962376]
[1740574234927,1.9629779,88328.0,88327.0,92.83948159]
[1740574235105,2.1629779,88328.0,88327.0,91.11962848]
[1740574235337,2.10426088,88328.0,88327.0,91.11962848]
[1740574235509,2.11126088,88328.0,88327.0,90.54231096]
[1740574235709,1.96689612,88328.0,88327.0,90.54231096]
[1740574236035,1.90319182,88328.0,88327.0,90.54231096]
[1740574236170,1.87227182,88328.0,88327.0,90.54231096]
[1740574236372,1.89242225,88328.0,88327.0,90.54231096]
[1740574236766,1.87842225,88328.0,88327.0,90.54231096]
[1740574237195,1.88542225,88328.0,88327.0,90.54231096]
[1740574237380,1.87842225,88328.0,88327.0,90.54231096]
[1740574237782,1.87450225,88328.0,88327.0,90.54231096]
[1740574238007,1.88538225,88328.0,88327.0,90.54231096]
[1740574238220,2.02382225,88328.0,88327.0,90.51957096]
[1740574238419,2.03474225,88328.0,88327.0,90.51957096]
[1740574239019,2.53474225,88328.0,88327.0,90.51957096]
[1740574239357,2.55251808,88328.0,88327.0,90.51957096]
[1740574240122,2.54159808,88328.0,88327.0,90.51957096]
[1740574240330,2.55247808,88328.0,88327.0,90.08404096]
[1740574240726,2.55257655,88328.0,88327.0,90.08404096]
[1740574240924,2.54557655,88328.0,88327.0,90.08404096]
[1740574241128,2.34141915,88328.0,88327.0,90.08404096]
[1740574241332,2.52785056,88328.0,88327.0,90.08404096]
[1740574241850,2.53485056,88328.0,88327.0,90.08404096]
[1740574242008,2.52785056,88328.0,88327.0,90.08404096]
[1740574242214,2.50085056,88328.0,88327.0,90.08404096]
[1740574242435,2.53485056,88328.0,88327.0,90.08404096]
[1740574243002,2.53481056,88328.0,88327.0,90.08404096]
[1740574243260,2.53485056,88328.0,88327.0,90.08404096]
[1740574243433,2.53481056,88328.0,88327.0,90.08404096]
[1740574244081,2.53565896,88328.0,88327.0,90.08404096]
[1740574244671,2.55342875,88328.0,88327.0,90.08404096]
[1740574245000,2.54254875,88328.0,88327.0,90.07707761]
[1740574245239,2.84254875,88328.0,88327.0,89.86364261]
[1740574245443,2.84642875,88328.0,88327.0,89.86364261]
[1740574245648,2.83942875,88328.0,88327.0,89.61390061]
[1740574245845,2.8952777,88328.0,88327.0,89.61390061]
[1740574246047,2.9131577,88328.0,88327.0,89.61390061]
[1740574246208,2.9061577,88328.0,88327.0,89.61390061]
[1740574246659,3.10047808,88328.0,88327.0,89.61390061]
[1740574246989,3.14069978,88328.0,88327.0,89.61390061]
[1740574247160,3.12981978,88328.0,88327.0,89.61390061]
[1740574247361,3.14069978,88328.0,88327.0,89.61390061]
[1740574247563,3.12981978,88328.0,88327.0,89.61390061]
[1740574247769,3.14069978,88328.0,88327.0,89.61390061]
[1740574248202,3.13681978,88328.0,88327.0,89.05708561]
[1740574248581,3.14769978,88328.0,88327.0,89.05708561]
[1740574249198,3.20171978,88328.0,88327.0,88.80708561]
[1740574249428,3.21259978,88328.0,88327.0,88.80708561]
[1740574249638,3.20171978,88328.0,88327.0,87.61915461]
[1740574249838,3.21259978,88328.0,88327.0,85.44527396]
[1740574250040,3.19471978,88328.0,88327.0,85.44527396]
[1740574250257,3.19471978,88328.0,88327.0,84.69738276]
[1740574250448,3.19471978,88328.0,88327.0,84.50723122]
[1740574250645,3.20559978,88328.0,88327.0,84.50723122]
[1740574250892,3.19859978,88328.0,88327.0,83.96437022]
[1740574251108,3.17795871,88328.0,88327.0,79.42353583]
[1740574251284,3.17407871,88328.0,88327.0,79.3110431]
[1740574251511,3.17791871,88328.0,88327.0,79.21645424]
[1740574251724,3.09524892,88328.0,88327.0,78.65447986]
[1740574251921,3.10224892,88328.0,88327.0,77.818073]
[1740574252096,3.10924892,88328.0,88327.0,76.47889364]
[1740574252331,3.10924892,88328.0,88327.0,75.84822438]
[1740574252505,3.80924892,88328.0,88327.0,70.31465863]
[1740574252716,3.80224892,88328.0,88327.0,70.22440524]
[1740574252862,3.80924892,88328.0,88327.0,69.64060261]
[1740574253068,3.78652892,88328.0,88327.0,69.53337006]
[1740574253286,3.77952892,88328.0,88327.0,69.53337006]
[1740574253519,3.77952892,88328.0,88327.0,69.50727006]
[1740574253726,3.78868042,88328.0,88327.0,69.50727006]
[1740574253868,3.78868042,88328.0,88327.0,69.08585487]
[1740574254075,3.78168042,88328.0,88327.0,68.97379913]
[1740574254414,3.78868042,88328.0,88327.0,68.25947916]
[1740574254624,3.78868042,88328.0,88327.0,67.70650298]
[1740574254964,3.87948042,88328.0,88327.0,65.50345537]
[1740574255188,3.87948042,88328.0,88327.0,64.34331834]
[1740574255189,4.36864042,88328.0,88327.0,64.34331834]
[1740574255391,3.66864042,88328.0,88327.0,64.00072932]
[1740574255626,3.67952042,88328.0,88327.0,63.26450332]
[1740574255799,3.67252042,88328.0,88327.0,63.26450332]
[1740574256010,3.69029519,88328.0,88327.0,62.93092837]
[1740574256203,3.69729519,88328.0,88327.0,62.93092837]
[1740574256406,4.39729519,88328.0,88327.0,62.82510449]
[1740574256728,4.39029519,88328.0,88327.0,62.14395979]
[1740574256935,4.39029519,88328.0,88327.0,60.60497579]
[1740574257136,4.39029519,88328.0,88327.0,60.58097579]
[1740574257342,4.39729519,88328.0,88327.0,59.51436487]
[1740574257519,4.39729519,88328.0,88327.0,58.37144987]
[1740574257721,4.39029519,88328.0,88327.0,58.04744714]
[1740574257930,4.39729519,88328.0,88327.0,56.72596414]
[1740574258328,4.36795349,88328.0,88327.0,56.61208861]
[1740574258528,4.36095349,88328.0,88327.0,55.90287294]
[1740574258661,4.36795349,88328.0,88327.0,55.67832004]
[1740574258861,4.36795349,88328.0,88327.0,55.36256534]
[1740574259264,4.36795349,88328.0,88327.0,55.07050662]
[1740574259461,4.30822454,88328.0,88327.0,55.05273903]
[1740574259745,4.30822454,88328.0,88327.0,54.95277433]
[1740574260722,9.24200369,88328.0,88327.0,54.95277433]
[1740574260936,9.25292369,88328.0,88327.0,54.95277433]
[1740574261139,9.24200369,88328.0,88327.0,54.95277433]
[1740574261358,9.3103974,88328.0,88327.0,54.95277433]
[1740574261557,9.29262263,88328.0,88327.0,54.84281317]
[1740574261773,9.30716348,88328.0,88327.0,54.84170326]
[1740574261973,4.25716348,88328.0,88327.0,54.54557913]
[1740574262288,4.19968977,88328.0,88327.0,54.54557913]
[1740574262487,4.19968977,88328.0,88327.0,54.48937438]
[1740574262696,4.19968977,88328.0,88327.0,54.48350795]
[1740574262872,4.19382481,88328.0,88327.0,54.23350795]
[1740574263076,4.19386481,88328.0,88327.0,54.09253894]
[1740574263303,4.21661481,88328.0,88327.0,53.85370603]
[1740574263501,4.21661481,88328.0,88327.0,53.83870603]
[1740574263710,4.22248093,88328.0,88327.0,53.8024027]
[1740574263916,4.22248093,88328.0,88327.0,53.4453848]
[1740574264123,4.19973093,88328.0,88327.0,53.23289319]
[1740574264289,4.19757943,88328.0,88327.0,51.81011466]
[1740574264502,4.25492023,88328.0,88327.0,51.32853719]
[1740574264750,4.25707173,88328.0,88327.0,50.32493078]
[1740574264955,4.77484713,88328.0,88327.0,50.01191316]
[1740574265167,4.76784713,88328.0,88327.0,48.74857716]
[1740574265372,4.76084713,88328.0,88327.0,48.47114725]
[1740574265575,4.07064973,88328.0,88327.0,48.35744725]
[1740574265814,4.77484713,88328.0,88327.0,48.24374725]
[1740574266004,4.71750633,88328.0,88327.0,47.98635786]
[1740574266218,4.71750633,88328.0,88327.0,47.82614039]
[1740574266411,4.71750633,88328.0,88327.0,47.71244039]
[1740574266648,4.38296548,88328.0,88327.0,47.53808471]
[1740574266848,4.38349634,88328.0,88327.0,47.53808471]
[1740574266962,3.9029729,88328.0,88327.0,47.53808471]
[1740574267587,4.0833729,88328.0,88327.0,47.53808471]
[1740574267785,4.08391375,88328.0,88327.0,47.43812001]
[1740574267987,4.09095375,88328.0,88327.0,47.41258819]
[1740574268188,4.09795375,88328.0,88327.0,47.15259173]
[1740574268410,4.09795375,88328.0,88327.0,47.04163092]
[1740574268411,4.07802685,88328.0,88327.0,47.04163092]
[1740574268632,4.16977835,88328.0,88327.0,46.59301047]
[1740574268834,4.22654426,88328.0,88327.0,45.11990084]
[1740574269031,4.72654426,88328.0,88327.0,44.41324729]
[1740574269240,4.71954426,88328.0,88327.0,44.34474729]
[1740574269437,4.78212951,88328.0,88327.0,43.66420121]
[1740574269645,4.78912951,88328.0,88327.0,43.11245797]
[1740574269846,4.760578,88328.0,88327.0,42.9066456]
[1740574270073,4.760578,88328.0,88327.0,41.07390997]
[1740574270406,4.760578,88328.0,88327.0,40.29673397]
[1740574270577,4.760578,88328.0,88327.0,40.21371832]
[1740574270791,4.753578,88328.0,88327.0,38.65920674]
[1740574270985,4.746578,88328.0,88327.0,38.59869209]
[1740574271189,4.753578,88328.0,88327.0,38.42408276]
[1740574271393,4.760578,88328.0,88327.0,38.42408276]
[1740574271565,4.746578,88328.0,88327.0,38.42249114]
[1740574271768,4.866178,88328.0,88327.0,37.46992103]
[1740574271954,4.880178,88328.0,88327.0,37.28575986]
[1740574272158,4.760578,88328.0,88327.0,36.57589572]
[1740574272544,4.72451843,88328.0,88327.0,36.5217028]
[1740574272676,4.71751843,88328.0,88327.0,36.4336407]
[1740574272875,4.82379789,88328.0,88327.0,36.28046174]
[1740574273080,4.80804789,88328.0,88327.0,35.61516272]
[1740574273277,4.68844789,88328.0,88327.0,35.29426693]
[1740574273677,4.67066193,88328.0,88327.0,33.29737193]
[1740574273922,4.67066193,88328.0,88327.0,30.74397392]
[1740574274179,4.67766193,88328.0,88327.0,30.57394369]
[1740574274379,4.67766193,88328.0,88327.0,26.80983535]
[1740574274610,4.67066193,88328.0,88327.0,25.81209259]
[1740574274804,4.66366193,88328.0,88327.0,25.71109597]
[1740574275020,4.69344133,88328.0,88327.0,22.61716649]
[1740574275242,4.01037205,88328.0,88327.0,22.32710815]
[1740574275445,4.01629313,88328.0,88327.0,20.18781282]
[1740574275648,4.05235784,88328.0,88327.0,19.36565647]
[1740574275849,4.02585852,88328.0,88327.0,19.23397772]
[1740574276051,4.05351892,88328.0,88327.0,19.06405567]
[1740574276263,4.07829736,88328.0,88327.0,18.77311825]
[1740574276462,4.04282579,88328.0,88327.0,18.53468153]
[1740574276670,4.03783517,88328.0,88327.0,18.51468314]
[1740574276880,4.05237602,88328.0,88327.0,18.44648314]
[1740574277085,4.04053602,88328.0,88327.0,18.32652241]
[1740574277263,4.05237602,88328.0,88327.0,18.29653301]
[1740574277463,4.05237602,88328.0,88327.0,17.98336463]
[1740574277795,3.98161011,88328.0,88327.0,17.71577152]
[1740574277985,3.98161011,88328.0,88327.0,17.52360682]
[1740574278231,3.99561011,88328.0,88327.0,17.16252031]
[1740574278444,4.12311011,88328.0,88327.0,14.03175779]
[1740574278632,4.10532133,88328.0,88327.0,13.95665903]
[1740574278864,4.09832133,88328.0,88327.0,12.21541535]
[1740574279069,4.10540133,88328.0,88327.0,11.97932096]
[1740574279267,4.0934832,88328.0,88327.0,7.79601031]
[1740574279487,4.09816275,88328.0,88327.0,3.89243171]
[1740574279687,4.09816275,88328.0,88327.0,3.62971094]
[1740574279899,4.09816275,88328.0,88327.0,3.36742895]
[1740574280112,4.79816275,88328.0,88327.0,3.27056812]
[1740574280326,4.79816275,88328.0,88327.0,0.75422299]
[1740574280327,4.85612297,88328.0,88327.0,0.75422299]
[1740574280533,0.0241974,88237.0,88156.0,0.0158026]
[1740574280739,1.85505342,88237.0,88155.0,0.0158026]
[1740574280947,3.04637875,88237.0,88150.0,0.0158026]
[1740574281214,0.7241974,88199.0,88198.0,0.08538476]
[1740574281423,2.03635099,88199.0,88198.0,0.08538476]
[1740574281619,2.05658274,88199.0,88198.0,0.08538476]
[1740574281824,2.05658274,88199.0,88198.0,0.00709524]
[1740574282021,0.7,88181.0,88180.0,0.07248]
[1740574282228,1.81635099,88181.0,88180.0,0.07248]
[1740574282431,1.66659172,88181.0,88180.0,0.07248]
[1740574282604,1.62674278,88181.0,88180.0,0.07248]
[1740574282741,1.63974278,88181.0,88180.0,0.07248]
[1740574283154,2.13974278,88181.0,88180.0,0.07248]
[1740574283363,2.33974278,88181.0,88180.0,0.15158]
[1740574283567,2.13974278,88181.0,88180.0,0.15158]
[1740574283781,2.13974278,88181.0,88180.0,0.16612085]
[1740574283987,2.33974278,88181.0,88180.0,0.16612085]
[1740574284410,2.34674278,88181.0,88180.0,0.16612085]
[1740574284849,2.33974278,88181.0,88180.0,0.16612085]
[1740574285285,2.35374278,88181.0,88180.0,0.16612085]
[1740574285458,2.34674278,88181.0,88180.0,0.15158]
[1740574285633,2.33974278,88181.0,88180.0,0.15158]
[1740574285816,2.34674278,88181.0,88180.0,0.16612085]
[1740574286021,2.37153565,88181.0,88180.0,0.14832799]
[1740574286289,2.37153565,88181.0,88180.0,0.13378714]
[1740574286421,2.37374278,88181.0,88180.0,0.13378714]
[1740574286874,2.36074278,88181.0,88180.0,0.05468714]
[1740574287205,2.36074278,88181.0,88147.0,0.0004242]
[1740574287206,0.02,88168.0,88163.0,0.0754]
[1740574287441,0.02,88164.0,88163.0,0.06503116]
[1740574287649,0.02198571,88164.0,88163.0,0.06503116]
[1740574288076,0.37024073,88162.0,88161.0,0.36289202]
[1740574288283,0.52,88161.0,88150.0,0.36289202]
[1740574288491,0.22,88161.0,88150.0,0.36289202]
[1740574288694,0.23019835,88161.0,88160.0,0.495]
[1740574288898,1.69726354,88161.0,88160.0,0.495]